Cogmind - Beta 16 @@@ ROGUE MODE // 2026.01.25 @ 16:29:01 Player: Peregrine Result: Destroyed by S-10 Pest with Light Assault Rifle Performance ------------- Evolutions (0) 0 Regions Visited (1) 200 Robots Destroyed (18) 90 Value Destroyed (443) 443 Prototype IDs (0) 0 Alien Tech Used (0) 0 Bonus (0) 0 TOTAL SCORE: 733 Bonus ------- None Cogmind --------- Core Integrity 0/250 Matter 157/300 Energy 265/265 System Corruption 0% Temperature Cool (0) Movement Rolling (115) Ox1 Location -10/Materials Parts ------- > --- POWER (1) -------- Improved Ion Engine > --- PROPULSION (2) --- Compact Wheel > --- UTILITY (2) ------ Improved Heat Sink Small Storage Unit > --- WEAPON (2) ------- Light Cannon Light Cannon > --- INVENTORY (8) ---- Aluminum Leg Improved Heat Sink Utility Shielding Small Laser Plasma Cutter Peak State ------------ > --- POWER ------------ Improved Ion Engine > --- PROPULSION ------- Aluminum Leg Compact Wheel > --- UTILITY ---------- Improved Heat Sink Small Storage Unit > --- WEAPON ----------- EM Pulse Gun Assault Rifle > --- INVENTORY -------- Improved Ion Engine Light Treads Light Treads Compact Wheel Improved Heat Sink Utility Shielding Light Assault Rifle Plasma Cutter [Rating: 11] Favorites ----------- Power Improved Ion Engine Engine Improved Ion Engine Propulsion Compact Wheel Treads Light Treads Leg Aluminum Leg Wheel Compact Wheel Utility Small Storage Unit Device Improved Heat Sink Storage Small Storage Unit Weapon Assault Rifle Energy Gun Small Laser Ballistic Gun Assault Rifle Ballistic Cannon Light Cannon Build | -11 -10 ------- Run | Yrd Mat Slots Evolved . | . . Power . | . . Propulsion . | . . Utility . | . . Weapon . | . . Parts Attached 14 | . 14 Power 2 | . 2 Engine 2 | . 2 Core . | . . Reactor . | . . Propulsion 6 | . 6 Treads 2 | . 2 Leg 1 | . 1 Wheel 3 | . 3 Hover . | . . Flight . | . . Utility 2 | . 2 Device 2 | . 2 Storage . | . . Processor . | . . Hackware . | . . Protection . | . . Artifact . | . . Weapon 4 | . 4 Energy Gun 2 | . 2 Energy Cannon . | . . Ballistic Gun . | . . Ballistic Cannon 2 | . 2 Launcher . | . . Special Weapon . | . . Impact Weapon . | . . Slashing Weapon . | . . Piercing Weapon . | . . Special Melee Weapon . | . . Unidentified Prototypes . | . . Parts Lost 6 | . 6 Power 1 | . 1 Propulsion 3 | . 3 Utility . | . . Weapon 2 | . 2 Highest Loss Streak 2 | . 2 To Critical Strikes . | . . Average Backups 6 | . 6 Power . | . . Propulsion 2 | . 2 Utility 1 | . 1 Weapon . | . . Tool/Special . | . . Unused Backups 9 | . 9 Power 2 | . 2 Propulsion 2 | . 2 Utility 2 | . 2 Weapon 2 | . 2 Tool/Special 1 | . 1 Average Slot Usage (%) 82 | . 82 Engine 10 | . 10 Treads 6 | . 6 Leg 3 | . 3 Wheel 13 | . 13 Device 8 | . 8 Storage 14 | . 14 Energy Gun 5 | . 5 Ballistic Gun 15 | . 15 Ballistic Cannon 3 | . 3 Peak Build Rating 11 | . 11 Average Rating 7 | . 7 On Entrance 6 | 6 6 Avg Prop Armor Cover (%) . | . . Naked Turns . | . . Heaviest Build 19 | 11 19 Greatest Support 40 | 20 40 Greatest Overweight (x) 1 | . 1 Average Overweight (x) . | . . Largest Inventory Capacity 8 | . 8 Average Capacity 8 | . 8 Most Carried 8 | . 8 Average Carried 6 | . 6 Final Capacity 8 | 8 8 Final Carried 6 | 6 5 Class Distribution -------------------- 100% | Mutant Dominant Class ---------------- Mutant | -10/Materials Resources | -11 -10 ----------- Run | Yrd Mat Matter Collected 431 | 200 231 Remotely . | . . Salvage Created 567 | . 567 Parts 33 | . 33 Haulers Intercepted 1 | . 1 Recyclers Shooed . | . . Parts Field Recycled . | . . Retrieved Matter . | . . Parts Self-Destructed . | . . Prevented . | . . Parts Restored . | . . Kills | -11 -10 ------- Run | Yrd Mat Combat Hostiles Destroyed 14 | . 14 Guns 13 | . 13 Cannons 1 | . 1 Classes Destroyed 6 | . 6 Worker 1 | . 1 Builder 1 | . 1 Hauler 1 | . 1 Watcher 1 | . 1 Swarmer 4 | . 4 Grunt 10 | . 10 Best Kill Streak 8 | . 8 Combat Bots Only 7 | . 7 Max Kills in Single Turn 2 | . 2 Gunslinging 1 | . 1 Exploded . | . . Melee . | . . Uniques/NPCs Destroyed . | . . Combat | -11 -10 -------- Run | Yrd Mat Hostile Shots Fired 142 | . 142 Missed 30 | . 30 Hits 112 | . 112 Projectile 112 | . 112 Critical Strikes 2 | . 2 Damage Taken 1137 | . 1137 Core 256 | . 256 Absorbed by Shields . | . . Core Remaining (%) 100 | 100 . Volleys Fired 72 | . 72 Largest 2 | . 2 Hottest 60 | . 60 Shots Fired 129 | . 129 Gun 103 | . 103 Cannon 26 | . 26 Launcher . | . . Special . | . . Kinetic 81 | . 81 Thermal 30 | . 30 Explosive . | . . Electromagnetic 18 | . 18 Robot Hit Streak 18 | . 18 Robot Miss Streak 3 | . 3 Penetration Max . | . . Secondary Targets 2 | . 2 Max Gunslinging Chain 1 | . 1 Shots Hit Robots 85 | . 85 Core Hits 32 | . 32 Critical Kills 1 | . 1 Critical Parts Destroyed . | . . Critical Strikes 2 | . 2 Destroy 1 | . 1 Blast 1 | . 1 Melee Attacks . | . . Impact . | . . Slashing . | . . Piercing . | . . Sneak Attacks . | . . Combat Hostiles . | . . Follow-up Attacks . | . . Damage Inflicted 1220 | . 1220 Guns 940 | . 940 Cannons 214 | . 214 Explosions 61 | . 61 Melee . | . . Ramming 5 | . 5 Kinetic 689 | . 689 Thermal 338 | . 338 Explosive . | . . Electromagnetic 188 | . 188 Impact . | . . Slashing . | . . Piercing . | . . Highest Corruption . | . . Average Corruption . | . . Corruption Purged . | . . Corruption Blocked . | . . Overload Shots . | . . Overflow Damage 14 | . 14 Projectiles 14 | . 14 Explosions . | . . Melee . | . . Knockbacks 7 | . 7 Impact . | . . Kinetic 6 | . 6 Secondary 1 | . 1 Self-Inflicted Damage 6 | . 6 Shots 1 | . 1 Rammed 4 | . 4 Targets Rammed 5 | . 5 Kicked . | . . Crushed 1 | . 1 Highest Temperature 23 | . 23 Average Temperature 8 | . 8 Received Heat Transfer 357 | . 357 Siege Activations . | . . Martial Activations . | . . Shielding Activations . | . . Robots Disrupted . | . . Combat Hostiles . | . . Robots Corrupted . | . . Combat Hostiles . | . . Parts Fried . | . . Impact Corruptions . | . . Robots Melted . | . . Combat Hostiles . | . . Parts Melted 1 | . 1 Heat Transferred 725 | . 725 Parts Sabotaged . | . . Parts Stolen . | . . Parts Stripped . | . . Power Chain Reactions 2 | . 2 Alert | -11 -10 ------- Run | Yrd Mat Maximum Alert Level 1 | . 1 Low Security (%) 89 | . 89 Level 1 10 | . 10 Level 2 . | . . Level 3 . | . . Level 4 . | . . Level 5 . | . . High Security . | . . Max Security . | . . Peak Influence 228 | . 228 Initial . | . . Average 101 | . 101 Influence Increases 495 | . 495 Destroy 0b10 Robot/C 280 | . 280 Destroy 0b10 Robot/NC 20 | . 20 Destroy Leader 64 | . 64 Successful Hack 17 | . 17 Select Force Hacks 30 | . 30 Destroy Structure 9 | . 9 Partial Spotted 15 | . 15 Lose Combat Pursuer 60 | . 60 Influence Decreases 275 | . 275 Time Decay 215 | . 215 Lost Part 60 | . 60 Squads Dispatched 2 | . 2 Investigation 1 | . 1 Extermination . | . . Reinforcement 1 | . 1 Assault . | . . Garrison . | . . Intercept . | . . Searches Triggered . | . . Construction Impeded . | . . Haulers Reinforced . | . . Active Scanning Responses . | . . Cargo Convoy Interrupts . | . . Stealth | -11 -10 --------- Run | Yrd Mat Distress Signals 2 | . 2 Communications Jammed . | . . Distress Signals . | . . Times Spotted 25 | . 25 Peak Tracking Total 7 | . 7 Tactical Retreats 2 | . 2 Traps | -11 -10 ------- Run | Yrd Mat Traps Triggered 1 | . 1 Indirectly . | . . Trap Hack Attempts . | . . Triggered . | . . Disarmed . | . . Reprogrammed . | . . Reused . | . . Traps Extracted . | . . Installed . | . . Triggered . | . . Machines | -11 -10 ---------- Run | Yrd Mat Machines Disabled . | . . Max in Single Turn . | . . Machines Repaired . | . . Machines Dismantled . | . . Machines Sabotaged . | . . Overloaded Fab Kills . | . . Hacking | -11 -10 --------- Run | Yrd Mat Machines Accessed 4 | . 4 Terminals 3 | . 3 Fabricators . | . . Repair Stations . | . . Recycling Units 1 | . 1 Scanalyzers . | . . Garrison Access . | . . Total Hacks 9 | . 9 Successful 6 | . 6 Failed 3 | . 3 Catastrophic . | . . Database Lockouts . | . . Manual 9 | . 9 Terminals 8 | . 8 Fabricators . | . . Repair Stations . | . . Recycling Units 1 | . 1 Scanalyzers . | . . Garrison Access . | . . Terminal Hacks 1 | . 1 Terminal Index 1 | . 1 Fabricator Hacks . | . . Repair Station Hacks . | . . Recycling Unit Hacks . | . . Scanalyzer . | . . Garrison Access Hacks . | . . Unauthorized Hacks 5 | . 5 Terminals 4 | . 4 Botnet 1 | . 1 Skim 3 | . 3 Fabricators . | . . Repair Stations . | . . Recycling Units 1 | . 1 Tunnel 1 | . 1 Scanalyzers . | . . Garrison Access . | . . Data Cores Recovered . | . . Used . | . . Hacking Detections 2 | . 2 Full Trace Events . | . . Feedback Events . | . . Feedback Blocked . | . . Robot Schematics Acquired . | . . Robots Built . | . . Authchips . | . . Time . | . . Total Robot Build Rating . | . . Part Schematics Acquired . | . . Parts Built . | . . Authchips . | . . Time . | . . Total Part Build Rating . | . . Part Studies Acquired . | . . Parts Repaired . | . . Time . | . . Parts Recycled . | . . Recycled Matter . | . . Retrieved Matter . | . . Retrieved Components . | . . Parts Scanalyzed . | . . Part Schematics Acquired . | . . Parts Damaged . | . . Bothacking | -11 -10 ------------ Run | Yrd Mat Used RIF Installer . | . . Robots Hacked . | . . Non-combat . | . . Combat . | . . Robot Hacks Applied . | . . Relay Couplers Released . | . . Fabnet Peak Effective % . | . . Robots Rewired . | . . Allies Hacked . | . . Hacks Repelled . | . . Allies | -11 -10 -------- Run | Yrd Mat Total Allies . | . . Largest Group . | . . Highest-Rated Group . | . . Highest-Rated Ally . | . . Total Orders . | . . Ally Attacks . | . . Total Damage . | . . Kills . | . . Allies Corrupted . | . . Allies Melted . | . . Intel | -11 -10 ------- Run | Yrd Mat Active Infowar (turns) . | . . Robot Analysis Total . | . . Derelict Logs Recovered . | . . Drone Launches . | . . Drone Recoveries . | . . Exploration | -11 -10 ------------- Run | Yrd Mat Turns Passed 639 | . 639 Spaces Moved 328 | 1 327 Core 1 | . 1 Treads 60 | . 60 Legs 59 | 1 58 Wheels 208 | . 208 Hover . | . . Flight . | . . Fastest Speed 100 | 120 100 Average Speed 116 | 120 116 Slowest Speed 160 | 120 160 Overloaded Moves . | . . Propulsion Burnouts . | . . Robots Hopped . | . . Potential Cave-ins . | . . Cave-ins Triggered . | . . Exploration Rate (%) 27 | 2 52 Regions Visited 1 Branch Regions . Pre-discovered Areas 1 | . 1 Known Exits Taken . | . . Unknown Exits Taken 1 | 1 . Scrap Searched . | . . Spaces Dug . | . . Terrain Destroyed 7 | . 7 Melee . | . . Projectile . | . . AOE 7 | . 7 Terrain Rammed . | . . Walls Destroyed . | . . Machines Disabled . | . . Actions | -11 -10 --------- Run | Yrd Mat Total 456 | . 456 Wait 17 | . 17 Move 327 | . 327 Hop . | . . Pick Up 12 | . 12 Fast Attach 1 | . 1 Attach 9 | . 9 Detach . | . . Swap 7 | . 7 Drop 6 | . 6 Fire 72 | . 72 Melee . | . . Ram . | . . Kick . | . . Crush 5 | . 5 Escape Stasis . | . . Rewire . | . . Trap . | . . Miscellaneous . | . . Route ------- -11/Scrapyard -10/Materials (discovered 2 exits: [*Mat] / [*Min]) History --------- Turn | Location | Event 1 | -11/Scrapyard | Discovered new exit (range 0) 1 | -11/Scrapyard | Entered Materials 36 | -10/Materials | Discovered new exit (range 8) 303 | -10/Materials | Build established: Mutant 338 | -10/Materials | Destroyed 7 combat bots 494 | -10/Materials | Core integrity fell below 50% 501 | -10/Materials | Derelicts attacked the area 515 | -10/Materials | Discovered new exit (range 16) 609 | -10/Materials | Core integrity fell below 20% 640 | -10/Materials | Destroyed by S-10 Pest with Light Assault Rifle Last Messages --------------- Testing... Terminal linked with 2 systems. Please expand to 2 more systems! 00531_ Dropped Lgt. Treads. 00535_ G-34 Mercenary destroyed. 00537_ Acquired 38 matter. 00552_ Weight Redist. System melted. 00552_ A-02 Transporter destroyed. 00558_ Acquired Lgt. Cannon. 00558_ Com. Wheel destroyed. 00560_ Acquired Lgt. Cannon. 00561_ K-01 Serf collects debris. 00608_ S-10 Pest Lgt. Ion Engine blasted off. 00608_ S-10 Pest destroyed. 00609_ K-01 Serf collects debris. 00611_ S-10 Pest knocked back. 00620_ Destroyed Flight Unit. 00620_ S-10 Pest knocked back. 00636_ Destroyed Flight Unit. 00636_ S-10 Pest knocked back. Map ----- +----------------------------------------------------+ | | | | | | | | | | | ?????????????????????????????????????????????????? | | ?????????????????????????????????????????????????? | | ?????????????????????????????????????????????????? | | ?????????????????????????????????????????????????? | | ?????????????????????????????????????????????????? | | ?????????????????????????????????????????????????? | | ?????????????????????????????????????????????????? | | ?????????????????????????????????????????????????? | | ????????????????? < ?????????????????????????????? | | ????????????????# ?????????????????????????????? | | ???????????????? ?????????????????????????????? | | ???????????????? ?????????????????????????????? | | ????????????????# ?????????????????????????????? | | ????????????????# ?????????????????????????????? | | ????????????????# ?????????????????????????????? | | ????????????????# ###############??????????????? | | ????????????????# ##|%! #??????????????? | | ????????????????# ##|!! """ #??????????????? | | ????????#######?# ##|!! """ #??????????????? | | ????????# """ #?# ## = """ #??????????????? | | #???????# """ ### ##s=*@% #??????????????? | | # "?????# """ ## ###s############????????????? | | # "?"???# ## %*% ?????????? | | ? """???# ## T %%[ ?????????? | | ?? ???# ## ?????????? | | ??? ???? ?# ??????????? | | ####+######+######### ??????????? | | ^^ ]% ???????????? | | ???????????? | | %%! ^ ! ???????????? | | ####=########################"T"#####????????????? | | ???#*#????????# #???????"""#????????????????? | | ???#=########## #????????#??????????????????? | | #### * #[ #???????????????????????????? | | / [= / ! ###########?????????????????? | | ### =%[ # # #?????????????????? | | ???# ###### #=* # """"" #?????????????????? | | ???# #????# # # ""T"" #?######??????????? | | ???# #????# # # #?# #??????????? | | ???# ######+# # """"" #?# #??????????? | | ???# # # # """"" #?# #??????????? | | ???# # # # """"" #?# #??????????? | | ??? # # # #?# #??????????? | | ??? + # %=#####+####### / #??????????? | | ?? # ####"""##?# # #??????????? | +----------------------------------------------------+ Best States ------------- Heat Dissipation 39 Energy Generation 12 Energy Capacity 265 Matter Stores 300 Matter Capacity 300 Sight Range 16 Terrain Scan Density 10 Evasion (%) 55 Recoil Reduction 2 Item Schematics ----------------- None Robot Schematics ------------------ None Fabricated ------------ Nothing Repaired ---------- Nothing Studied --------- None Alien Tech Used ----------------- None Achievements -------------- None Challenges ------------ None Game ------ Seed PulseCompanionTrap Manual? 0 Play Time 00:09:01 Cumulative 173.5 hours Start 2026.01.25 @ 16:23:01 End 2026.01.25 @ 16:29:01 Sessions 1 Manual Loads 0 Difficulty Rogue Special Mode None Game No. 193 Rogue 178 Adventurer 15 Explorer 0 Win Type - Total 9 Types 3/0/3/1/0/0/1/0/0/1 Lore% 55 Gallery% 71 Achievement% 55 Wizard Run 0 Options --------- Layout 0 ASCII 0 Keyboard 0 Movement Mouse Keybinds 0 Fullscreen 2 Font 36/Smallcaps Map View 76x50 Zoom Use 0% Tactical HUD 1 Map Filters NONE Filters NONE Steam 1 RUN: 7db401c2-04f3-4fd2-924d-835db02ff254